Cogmind - Beta 17 *** ADVENTURER MODE // 2026.07.25 @ 04:09:29 Player: AzzyWazzy Result: Destroyed by D-53 Grenadier with Mini Grenade Launcher Performance ------------- Evolutions (0) 0 Regions Visited (2) 400 Robots Destroyed (2) 10 Value Destroyed (20) 20 Prototype IDs (0) 0 Alien Tech Used (0) 0 Bonus (0) 0 TOTAL SCORE: 430 Bonus ------- None Cogmind --------- Core Integrity 0/250 Matter 79/300 Energy 349/350 System Corruption 0% Temperature Cool (0) Movement Core (150) Ox2 Location -10/Mines Parts ------- > --- POWER (1) -------- (None) > --- PROPULSION (2) --- (None) > --- UTILITY (2) ------ Small Storage Unit High-capacity Battery > --- WEAPON (2) ------- (None) > --- INVENTORY (8) ---- Aluminum Leg Aluminum Leg Compact Wheel Compact Wheel Assault Rifle Light Assault Rifle Peak State ------------ > --- POWER ------------ Light Ion Engine > --- PROPULSION ------- Compact Wheel Compact Wheel > --- UTILITY ---------- Small Storage Unit High-capacity Battery > --- WEAPON ----------- Light Assault Rifle Grenade Launcher > --- INVENTORY -------- Aluminum Leg Aluminum Leg Assault Rifle Light Assault Rifle [Rating: 7] Favorites ----------- Power Light Ion Engine Engine Light Ion Engine Propulsion Compact Wheel Wheel Compact Wheel Utility Small Storage Unit Storage Small Storage Unit Weapon Light Assault Rifle Ballistic Gun Light Assault Rifle Launcher Grenade Launcher Build | -11 -10 -10 ------- Run | Yrd Mat Min Slots Evolved . | . . . Power . | . . . Propulsion . | . . . Utility . | . . . Weapon . | . . . Parts Attached 9 | 6 3 . Power 2 | 1 1 . Engine 2 | 1 1 . Core . | . . . Reactor . | . . . Propulsion 2 | 2 . . Treads . | . . . Leg . | . . . Wheel 2 | 2 . . Hover . | . . . Flight . | . . . Utility 2 | 1 1 . Device . | . . . Storage 2 | 1 1 . Processor . | . . . Hackware . | . . . Protection . | . . . Artifact . | . . . Weapon 3 | 2 1 . Energy Gun . | . . . Energy Cannon . | . . . Ballistic Gun 2 | 2 . . Ballistic Cannon . | . . . Launcher 1 | . 1 . Special Weapon . | . . . Impact Weapon . | . . . Slashing Weapon . | . . . Piercing Weapon . | . . . Special Melee Weapon . | . . . Unidentified Prototypes . | . . . Parts Lost 5 | . . 5 Power 1 | . . 1 Propulsion 2 | . . 2 Utility . | . . . Weapon 2 | . . 2 Highest Loss Streak 5 | . . 5 To Critical Strikes . | . . . Average Backups 4 | 3 4 6 Power . | . . . Propulsion 3 | 2 2 4 Utility . | . . . Weapon 1 | 1 1 2 Tool/Special . | . . . Unused Backups 5 | . . 5 Power . | . . . Propulsion 4 | . . 4 Utility . | . . . Weapon 1 | . . 1 Tool/Special . | . . . Average Slot Usage (%) 91 | . 90 96 Engine 14 | . 14 14 Wheel 27 | . 27 26 Storage 22 | . 21 28 Ballistic Gun 16 | . 16 14 Launcher 10 | . 9 11 Peak Build Rating 7 | 6 7 7 Average Rating 6 | 3 6 6 On Entrance 4 | . 6 7 Avg Prop Armor Cover (%) . | . . . Naked Turns . | . . . Heaviest Build 16 | 13 16 16 Greatest Support 32 | 32 32 32 Greatest Overweight (x) 2 | 1 . 2 Average Overweight (x) . | . . . Largest Inventory Capacity 8 | 8 8 8 Average Capacity 7 | 7 7 8 Most Carried 8 | 8 7 6 Average Carried 4 | 3 4 6 Final Capacity 8 | 8 8 8 Final Carried 6 | 3 6 6 Class Distribution -------------------- 100% | Mutant Dominant Class ---------------- Mutant | -10/Materials Mutant | -10/Mines Resources | -11 -10 -10 ----------- Run | Yrd Mat Min Matter Collected 280 | 110 170 . Remotely . | . . . Salvage Created 89 | . 20 69 Parts 2 | . 2 . Haulers Intercepted . | . . . Recyclers Shooed . | . . . Parts Field Recycled . | . . . Retrieved Matter . | . . . Parts Self-Destructed . | . . . Prevented . | . . . Parts Restored . | . . . Kills | -11 -10 -10 ------- Run | Yrd Mat Min Combat Hostiles Destroyed 17 | . 2 15 Guns 4 | . . 4 AOE 13 | . 2 11 Classes Destroyed 2 | . 1 1 Swarmer 2 | . 2 . Assembled 15 | . . 15 Best Kill Streak 15 | . 2 15 Combat Bots Only 15 | . 2 15 Max Kills in Single Turn 2 | . 2 2 Gunslinging . | . . . Exploded 2 | . 2 2 Melee . | . . . Uniques/NPCs Destroyed . | . . . Combat | -11 -10 -10 -------- Run | Yrd Mat Min Hostile Shots Fired 46 | . 5 41 Missed 9 | . . 9 Hits 37 | . 5 32 Melee 1 | . . 1 Projectile 36 | . 5 31 AOE 10 | . . 10 Damage Taken 609 | . 28 581 Core 251 | . 6 245 Absorbed by Shields . | . . . Ignored by Resistances 173 | . 10 163 Regen/Repaired (Parts) 11 | . 11 . Core Remaining (%) 100 | 100 . . Volleys Fired 26 | . 4 22 Largest 2 | . 2 2 Hottest 50 | . 50 50 Shots Fired 44 | . 8 36 Gun 26 | . 4 22 Cannon . | . . . Launcher 18 | . 4 14 Special . | . . . Kinetic 26 | . 4 22 Thermal . | . . . Explosive 18 | . 4 14 Electromagnetic . | . . . Robot Hit Streak 9 | . 2 9 Robot Miss Streak 1 | . 1 1 Penetration Max . | . . . Secondary Targets . | . . . Shots Hit Robots 29 | . 5 24 Core Hits 35 | . 2 33 Critical Kills . | . . . Critical Parts Destroyed . | . . . Critical Strikes . | . . . Melee Attacks . | . . . Impact . | . . . Slashing . | . . . Piercing . | . . . Sneak Attacks . | . . . Combat Hostiles . | . . . Follow-up Attacks . | . . . Damage Inflicted 1237 | . 232 1005 Guns 155 | . 18 137 Cannons . | . . . Explosions 1082 | . 214 868 Melee . | . . . Ramming . | . . . Kinetic 155 | . 18 137 Thermal . | . . . Explosive 1082 | . 214 868 Electromagnetic . | . . . Impact . | . . . Slashing . | . . . Piercing . | . . . Highest Corruption . | . . . Average Corruption . | . . . Corruption Purged . | . . . Corruption Blocked . | . . . Overload Shots . | . . . Overflow Damage 51 | . 5 46 Projectiles . | . . . Explosions 51 | . 5 46 Melee . | . . . Knockbacks . | . . . Impact . | . . . Kinetic . | . . . Secondary . | . . . Self-Inflicted Damage 39 | . . 39 Shots 2 | . . 2 Rammed . | . . . Targets Rammed . | . . . Kicked . | . . . Crushed . | . . . Highest Temperature 50 | . 20 50 Average Temperature 17 | . 10 19 Received Heat Transfer 60 | . . 60 Siege Activations . | . . . Martial Activations . | . . . Shielding Activations . | . . . Robots Disrupted . | . . . Combat Hostiles . | . . . Robots Corrupted . | . . . Combat Hostiles . | . . . Parts Fried . | . . . Impact Corruptions . | . . . Robots Melted . | . . . Combat Hostiles . | . . . Parts Melted . | . . . Heat Transferred . | . . . Parts Sabotaged . | . . . Parts Stolen . | . . . Parts Stripped . | . . . Power Chain Reactions . | . . . Alert | -11 -10 -10 ------- Run | Yrd Mat Min Maximum Alert Level . | . . . Low Security (%) 100 | 100 100 100 Level 1 . | . . . Level 2 . | . . . Level 3 . | . . . Level 4 . | . . . Level 5 . | . . . High Security . | . . . Max Security . | . . . Peak Influence 63 | . 63 19 Initial . | . . . Average 11 | . 16 4 Influence Increases 119 | . 73 46 Destroy 0b10 Robot/C 40 | . 40 . Destroy Structure 64 | . 18 46 Lose Combat Pursuer 15 | . 15 . Influence Decreases 119 | . 73 46 Time Decay 99 | . 73 26 Lost Part 20 | . . 20 Squads Dispatched . | . . . Investigation . | . . . Extermination . | . . . Reinforcement . | . . . Assault . | . . . Garrison . | . . . Intercept . | . . . Searches Triggered . | . . . Construction Impeded . | . . . Haulers Reinforced . | . . . Active Scanning Responses . | . . . Cargo Convoy Interrupts . | . . . Stealth | -11 -10 -10 --------- Run | Yrd Mat Min Distress Signals . | . . . Communications Jammed . | . . . Distress Signals . | . . . Times Spotted 25 | . 5 20 Peak Tracking Total 7 | . 2 7 Tactical Retreats 3 | . 1 2 Traps | -11 -10 -10 ------- Run | Yrd Mat Min Traps Triggered . | . . . Indirectly . | . . . Trap Hack Attempts . | . . . Triggered . | . . . Disarmed . | . . . Reprogrammed . | . . . Reused . | . . . Traps Extracted . | . . . Installed . | . . . Triggered . | . . . Machines | -11 -10 -10 ---------- Run | Yrd Mat Min Machines Disabled . | . . . Max in Single Turn . | . . . Machines Repaired . | . . . Machines Dismantled . | . . . Machines Sabotaged . | . . . Overloaded Fab Kills . | . . . Hacking | -11 -10 -10 --------- Run | Yrd Mat Min Machines Accessed 1 | . 1 . Terminals . | . . . Fabricators . | . . . Repair Stations 1 | . 1 . Recycling Units . | . . . Scanalyzers . | . . . Garrison Access . | . . . Total Hacks 4 | . 4 . Successful 4 | . 4 . Failed . | . . . Catastrophic . | . . . Database Lockouts . | . . . Manual . | . . . Terminals . | . . . Fabricators . | . . . Repair Stations 4 | . 4 . Recycling Units . | . . . Scanalyzers . | . . . Garrison Access . | . . . Terminal Hacks . | . . . Fabricator Hacks . | . . . Repair Station Hacks 4 | . 4 . Scan Component 2 | . 2 . Repair 2 | . 2 . Recycling Unit Hacks . | . . . Scanalyzer . | . . . Garrison Access Hacks . | . . . Unauthorized Hacks . | . . . Terminals . | . . . Fabricators . | . . . Repair Stations . | . . . Recycling Units . | . . . Scanalyzers . | . . . Garrison Access . | . . . Data Cores Recovered . | . . . Used . | . . . Hacking Detections . | . . . Full Trace Events . | . . . Feedback Events . | . . . Feedback Blocked . | . . . Robot Schematics Acquired . | . . . Robots Built . | . . . Authchips . | . . . Time . | . . . Total Robot Build Rating . | . . . Part Schematics Acquired . | . . . Parts Built . | . . . Authchips . | . . . Time . | . . . Total Part Build Rating . | . . . Part Studies Acquired . | . . . Parts Repaired 2 | . 2 . Time 52 | . 52 . Parts Recycled . | . . . Recycled Matter . | . . . Retrieved Matter . | . . . Retrieved Components . | . . . Parts Scanalyzed . | . . . Part Schematics Acquired . | . . . Parts Damaged . | . . . Bothacking | -11 -10 -10 ------------ Run | Yrd Mat Min Used RIF Installer . | . . . Robots Hacked . | . . . Non-combat . | . . . Combat . | . . . Robot Hacks Applied . | . . . Relay Couplers Released . | . . . Fabnet Peak Effective % . | . . . Robots Rewired . | . . . Allies Hacked . | . . . Hacks Repelled . | . . . Allies | -11 -10 -10 -------- Run | Yrd Mat Min Total Allies . | . . . Largest Group . | . . . Highest-Rated Group . | . . . Highest-Rated Ally . | . . . Total Orders . | . . . Ally Attacks . | . . . Total Damage . | . . . Kills . | . . . Allies Corrupted . | . . . Allies Melted . | . . . Intel | -11 -10 -10 ------- Run | Yrd Mat Min Active Infowar (turns) . | . . . Robot Analysis Total . | . . . Derelict Logs Recovered . | . . . Drone Launches . | . . . Drone Recoveries . | . . . Exploration | -11 -10 -10 ------------- Run | Yrd Mat Min Turns Passed 506 | 67 327 112 Spaces Moved 296 | 40 198 58 Core 23 | 22 . 1 Treads . | . . . Legs . | . . . Wheels 273 | 18 198 57 Hover . | . . . Flight . | . . . Fastest Speed 50 | 50 100 100 Average Speed 97 | 83 100 100 Slowest Speed 150 | 100 100 150 Overloaded Moves . | . . . Propulsion Burnouts . | . . . Robots Hopped . | . . . Potential Cave-ins . | . . . Cave-ins Triggered . | . . . Exploration Rate (%) 15 | 3 21 23 Regions Visited 2 Branch Regions 1 Pre-discovered Areas . | . . . Known Exits Taken . | . . . Unknown Exits Taken 2 | 1 1 . Scrap Searched . | . . . Spaces Dug . | . . . Terrain Destroyed 88 | . 17 71 Melee . | . . . Projectile . | . . . AOE 88 | . 17 71 Terrain Rammed . | . . . Walls Destroyed . | . . . Machines Disabled . | . . . Actions | -11 -10 -10 --------- Run | Yrd Mat Min Total 473 | 73 319 81 Wait 123 | 20 102 1 Move 294 | 39 197 58 Hop . | . . . Pick Up 16 | 8 8 . Fast Attach 1 | 1 . . Attach 9 | 5 4 . Detach . | . . . Swap 2 | . 2 . Drop 2 | . 2 . Fire 26 | . 4 22 Melee . | . . . Ram . | . . . Kick . | . . . Crush . | . . . Escape Stasis . | . . . Rewire . | . . . Trap . | . . . Miscellaneous . | . . . Route ------- -11/Scrapyard -10/Materials -10/Mines History --------- Turn | Location | Event 16 | -11/Scrapyard | Discovered new exit (range 15) 68 | -11/Scrapyard | Entered Materials 69 | -10/Materials | Met a group of wandering Federalists 166 | -10/Materials | Lost 3 allies 211 | -10/Materials | Discovered new exit (range 16) 289 | -10/Materials | Repaired Grenade Launcher 311 | -10/Materials | Build established: Mutant 317 | -10/Materials | Repaired Com. Wheel 395 | -10/Materials | Entered Mines 427 | -10/Mines | Assembled infested the area 432 | -10/Mines | Assisted by a Guerilla fighting off Assembled 501 | -10/Mines | Core integrity fell below 50% 506 | -10/Mines | Core integrity fell below 20% 507 | -10/Mines | Destroyed by D-53 Grenadier with Mini Grenade Launcher Last Messages --------------- as-43371 destroyed. The unstable cave ceiling collapses. as-37678 destroyed. as-86740 destroyed. Destroyed Asb. F-torch. as-13274 destroyed. as-90189 destroyed. The unstable cave ceiling collapses. as-58768 destroyed. Grenade Launcher destroyed. as-05420 destroyed. [Achievement: Exterminator] Com. Wheel destroyed. as-29000 destroyed. as-85332 destroyed. The unstable cave ceiling collapses. Lgt. Ion Engine destroyed. Lgt. Assault Rifle destroyed. The unstable cave ceiling collapses. Com. Wheel destroyed. Map ----- +----------------------------------------------------+ | ???????????????????????????#?????? ??????????????? | | ???????????????????????????# ????? ??????????????? | | ?????????????????????? ???# ????# #?????????????? | | ?????????????????????? ??# ?### #?????????????? | | ???????????????????????? ## ## ##????????????? | | ?????????????????????????# ##???????????? | | ?????????????????????????# ##??????????? | | ?????????????????????????# #??????????? | | ???????????????????????????? ##?????#???? | | ??????????????????????????????# ##??? #???? | | ???????????????????????????????# ### #???? | | ???????????????????????#??????## #???? | | ??????????????????????? #?????# #???? | | ??????????????????????? ###??# #####???? | | ??????????????????????? #??# #???????? | | ??????????????????????? ??## ##???????? | | ??????????????????????? ????# #????????? | | ???????????????????????# ????# ##????????? | | ???????????????????????# #????# ## ##?????????? | | ?????????????????????### #????# ##? #??????????? | | ?????????? ????????# # ##???# ### #??????????? | | ?????????? ??###### #???# #??????????? | | ??????????# ## # ###?# #####??????????? | | ???????????# ### ##????????????? | | ?????????????# ## #????????????? | | ?????????????## @ # #????????????? | | ??????????????#### # #????????????? | | ?????????????????## # #????????????? | | ??????????????????# ## #????????????? | | ??????????????????# ### #????????????? | | ?????????????????# d### #????????????? | | ???????????????# d ##???????????? | | ??????????????# ! #####???????? | | ?????????????# # # *%!### #???????? | | ????????????< % % ####?## #???????? | | ???????????# a # ?????## #???????? | | ???????????# ####?????### #???????? | | ???????????# ####??????????## #???????? | | ???????????# #???????????????? #???????? | | ???????????? ### ?????????????????? ##???????? | | ???????????? ??? ??????????????????##????????? | | ???????????????## ????????????????????????????? | | ????????????????# ?????????????????????????????? | | ???????????????????#?????????????????????????????? | | ?????????????????????????????????????????????????? | | ?????????????????????????????????????????????????? | | ?????????????????????????????????????????????????? | | ?????????????????????????????????????????????????? | | ?????????????????????????????????????????????????? | | ?????????????????????????????????????????????????? | +----------------------------------------------------+ Best States ------------- Heat Dissipation 25 Energy Generation 10 Energy Capacity 375 Matter Stores 300 Matter Capacity 300 Sight Range 16 Terrain Scan Density 10 Resistance: KI 20 Resistance: TH 20 Resistance: EX 20 Resistance: EM 20 Resistance: I 20 Resistance: S 20 Resistance: P 20 Evasion (%) 50 Offensive Hacking 10 Item Schematics ----------------- None Robot Schematics ------------------ None Fabricated ------------ Nothing Repaired ---------- Grenade Launcher | 90% | -10/Materials Com. Wheel | 83% | -10/Materials Studied --------- None Alien Tech Used ----------------- None Achievements -------------- Exterminator Challenges ------------ None Game ------ Seed RiotTerrainWyrmplate Manual? 0 Play Time 00:08:11 Cumulative 3.0 hours Start 2026.07.25 @ 04:01:45 End 2026.07.25 @ 04:09:29 Sessions 1 Manual Loads 0 Difficulty Adventurer Special Mode None Game No. 6 Rogue 0 Adventurer 6 Explorer 0 Win Type - Total 0 Types 0/0/0/0/0/0/0/0/0/0 Lore% 3 Gallery% 6 Achievement% 9 Wizard Run 0 Options --------- Layout 1 ASCII 1 Keyboard 0 Movement Mouse Keybinds 0 Fullscreen 2 Font 24/Smallcaps Map View 50x35 Zoom Use 0% Tactical HUD 0 Map Filters NONE Filters NONE Steam 1 RUN: 5e552503-b0d3-4720-afba-138005543bbd